bitfinex/quotes_ETHUSD_20250213
["timestamp","ask_amount","ask_price","bid_price","bid_amount"]
[1739473195734,6.7e-06,2643.4,2643.3,6.78314]
[1739473195923,0.08452648,2643.4,2643.3,6.78314]
[1739473197665,0.08452648,2643.4,2643.3,7.86798132]
[1739473197822,0.08452648,2643.4,2643.3,7.839771]
[1739473198022,6.7e-06,2643.4,2643.3,8.607071]
[1739473198442,6.7e-06,2643.4,2643.3,9.157071]
[1739473200279,6.7e-06,2643.4,2643.3,8.607071]
[1739473200572,0.8148,2643.3,2642.8,8.55088504]
[1739473200770,0.8148,2643.3,2642.9,3.0]
[1739473200917,0.8148,2643.3,2643.2,3.0]
[1739473201123,0.8148,2643.3,2643.2,6.78329]
[1739473201372,6.7e-06,2643.4,2643.3,3.78314]
[1739473201553,6.7e-06,2643.4,2643.3,3.81135718]
[1739473201764,6.7e-06,2643.4,2642.8,4.76704504]
[1739473202072,0.0075,2643.1,2642.8,3.93914504]
[1739473202274,4.59422,2643.2,2642.8,3.93914504]
[1739473202417,2.07663767,2643.2,2642.9,3.0]
[1739473202622,0.8109,2643.2,2643.1,6.78343]
[1739473202868,0.8109,2643.2,2643.1,3.0]
[1739473203375,0.8109,2643.2,2643.1,3.78343]
[1739473203524,6.7e-06,2643.4,2643.3,3.78314]
[1739473203729,6.7e-06,2643.4,2643.3,6.78314]
[1739473203941,6.7e-06,2643.4,2643.3,7.839782]
[1739473205520,6.7e-06,2643.4,2643.3,8.621582]
[1739473210825,6.7e-06,2643.4,2643.2,3.78328]
[1739473211034,6.7e-06,2643.4,2642.8,3.93914504]
[1739473211325,0.7595,2643.3,2643.0,3.0]
[1739473211474,0.7595,2643.3,2642.9,3.78358]
[1739473211675,0.7595,2643.3,2643.0,3.78351]
[1739473212103,0.7595,2643.3,2643.1,3.7834]
[1739473212272,0.7595,2643.3,2643.0,3.78357]
[1739473212474,0.7595,2643.3,2642.9,3.0]
[1739473212678,0.7595,2643.3,2642.8,7.72290504]
[1739473212879,4.99693067,2643.3,2642.8,3.93914504]
[1739473213123,1.21375067,2643.3,2642.9,3.0]
[1739473213426,0.7595,2643.3,2643.1,3.78338]
[1739473213636,0.7595,2643.3,2643.2,6.78329]
[1739473213979,6.7e-06,2643.4,2643.3,6.78314]
[1739473215450,6.7e-06,2643.4,2643.3,6.81133983]
[1739473216276,6.7e-06,2643.4,2643.3,6.78314]
[1739473216412,6.7e-06,2643.4,2643.3,8.3140544]
[1739473216612,6.7e-06,2643.4,2643.3,8.28586171]
[1739473218868,6.7e-06,2643.4,2643.3,8.83586171]
[1739473219076,6.7e-06,2643.4,2643.3,9.60706171]
[1739473220053,6.7e-06,2643.4,2643.3,9.05706171]
[1739473220452,6.7e-06,2643.4,2643.3,8.28586171]
[1739473220801,0.7619067,2643.4,2643.3,3.78314]
[1739473221269,6.7e-06,2643.4,2643.3,3.78314]
[1739473221418,6.7e-06,2643.4,2643.3,3.81134961]
[1739473222264,0.08465771,2643.4,2643.3,3.81134961]
[1739473222429,6.7e-06,2643.4,2643.3,8.64801157]
[1739473222632,6.7e-06,2643.4,2643.3,9.16980196]
[1739473223214,6.7e-06,2643.4,2643.3,8.61980196]
[1739473223627,6.7e-06,2643.4,2643.3,6.78314]
[1739473223837,6.7e-06,2643.4,2643.3,6.81134541]
[1739473224029,6.7e-06,2643.4,2643.3,6.78314]
[1739473225138,6.7e-06,2643.4,2643.3,6.81134073]
[1739473225468,6.7e-06,2643.4,2643.3,6.78314]
[1739473225678,6.7e-06,2643.4,2643.3,8.20894971]
[1739473227063,6.7e-06,2643.4,2643.3,9.00634971]
[1739473227277,6.7e-06,2643.4,2643.3,9.55634971]
[1739473229182,6.7e-06,2643.4,2643.3,13.34803683]
[1739473229384,6.7e-06,2643.4,2643.3,26.10303683]
[1739473230099,6.7e-06,2643.4,2643.3,22.11303683]
[1739473230622,6.7e-06,2643.4,2643.3,22.30290742]
[1739473231467,6.7e-06,2643.4,2643.3,22.09803683]
[1739473231673,6.7e-06,2643.4,2643.3,18.30634971]
[1739473231888,6.7e-06,2643.4,2643.3,21.99803683]
[1739473233274,6.7e-06,2643.4,2643.3,22.11303683]
[1739473233874,6.7e-06,2643.4,2643.3,22.31303683]
[1739473234206,0.7901,2644.8,2644.7,3.78114]
[1739473234511,0.87603656,2644.8,2644.7,6.78114]
[1739473235368,6.56e-06,2644.8,2644.7,9.220481]
[1739473235546,0.8112,2645.3,2645.2,6.78043]
[1739473236110,0.89416379,2645.3,2645.2,6.78043]
[1739473236712,0.08296379,2645.3,2645.2,6.78043]
[1739473237160,0.7845,2645.7,2645.6,6.77986]
[1739473237376,0.9168667,2646.0,2645.8,3.0]
[1739473237581,0.9168667,2646.0,2645.5,3.0]
[1739473237725,0.7732,2645.8,2645.2,6.78032]
[1739473238042,0.7732,2645.8,2645.4,3.7801]
[1739473238239,1.24281667,2645.8,2645.3,3.0]
[1739473238444,3.78003,2645.5,2645.0,3.78066]
[1739473238669,3.78029,2645.3,2644.8,3.78095]
[1739473238832,0.8023,2645.2,2644.8,3.78095]
[1739473239030,0.88526379,2645.2,2644.9,3.0]
[1739473239287,1.35181217,2645.2,2644.9,3.0]
[1739473239775,0.8067,2645.1,2644.6,3.7812]
[1739473239975,0.792,2645.0,2644.6,3.7812]
[1739473240192,0.792,2645.0,2644.8,3.78098]
[1739473240477,0.08296379,2644.9,2644.8,3.78098]
[1739473241235,0.08296379,2644.9,2644.7,3.78113]
[1739473241546,0.8184,2644.8,2644.6,6.78125]
[1739473241878,0.08303372,2644.7,2644.6,6.78125]
[1739473242229,0.8184,2644.8,2644.3,6.78161]
[1739473242428,0.08303372,2644.7,2644.1,3.2175196]
[1739473242670,3.86423372,2644.7,2644.2,3.78181]
[1739473242831,0.7752,2644.6,2644.2,3.0]
[1739473243034,0.7798,2644.5,2644.1,3.2175196]
[1739473243274,0.85998624,2644.5,2644.2,3.0]
[1739473243469,4.64149624,2644.5,2644.2,3.0]
[1739473243678,0.7798,2644.4,2644.1,3.2175196]
[1739473244034,0.07661586,2644.3,2644.2,3.0]
[1739473244229,0.86431586,2644.3,2644.2,3.0]
[1739473244765,4.64602586,2644.3,2644.2,3.0]
[1739473244966,4.64602586,2644.3,2643.6,3.78265]
[1739473244967,0.7877,2644.1,2643.6,3.78265]
[1739473245173,0.06590199,2644.0,2643.6,7.56528]
[1739473245706,0.06590199,2644.0,2643.7,3.78249]
[1739473246047,0.06590199,2644.0,2643.8,3.78239]
[1739473246249,0.06590199,2644.0,2643.9,6.81048761]
[1739473246466,0.06590199,2644.0,2643.9,6.81047722]
[1739473246703,0.7852,2644.4,2644.3,3.78171]
[1739473246908,4.56416,2645.1,2644.5,3.78129]
[1739473247091,0.7835,2645.1,2644.4,3.0]
[1739473247261,0.5223078,2645.0,2644.9,3.78086]
[1739473247463,0.0659108,2645.0,2644.9,6.78086]
[1739473247791,0.46961667,2645.8,2644.9,6.78086]
[1739473247792,2.0,2646.3,2645.9,6.77943]
[1739473247950,2.0,2646.3,2645.9,3.0]
[1739473248155,2.0,2646.3,2645.9,6.77943]
[1739473248406,5.05345088,2646.6,2645.9,6.77943]
[1739473248608,0.77345088,2646.6,2645.9,6.77943]
[1739473248818,0.77345088,2646.6,2646.0,3.0]
[1739473249032,0.11742613,2646.9,2646.6,3.77834]
[1739473249309,0.11742613,2646.9,2646.5,3.0]
[1739473249474,0.11742613,2646.9,2646.7,3.77815]
[1739473249655,0.11742613,2646.9,2646.3,3.0]
[1739473249850,0.11742613,2646.9,2646.4,3.7787]
[1739473250050,0.11742613,2646.9,2646.5,3.0]
[1739473250250,0.11742613,2646.9,2645.6,3.7653]
[1739473250251,3.89552613,2646.9,2645.6,3.7653]
[1739473250487,0.38955261,2646.8,2646.4,3.0]
[1739473250811,0.11742613,2646.9,2646.6,3.77843]
[1739473250812,0.3846,2646.7,2646.6,3.77843]
[1739473251306,0.3846,2646.7,2646.6,6.77843]
[1739473251611,0.11742613,2646.9,2646.7,3.0]
[1739473252011,0.11742613,2646.9,2646.7,6.77816]
[1739473252157,0.11742613,2646.9,2646.8,6.77814]
[1739473252485,0.11742613,2646.9,2646.8,3.0]
[1739473253206,0.18361413,2646.9,2646.8,3.0]
[1739473253916,0.18361413,2646.9,2646.8,6.77814]
[1739473254062,0.18361413,2646.9,2646.8,3.0]
[1739473256370,0.18361413,2646.9,2646.8,6.77814]
[1739473256704,0.18361413,2646.9,2646.8,3.0]
[1739473259067,0.19861413,2646.9,2646.3,8.06142147]
[1739473259428,4.16297,2646.7,2646.2,3.77891]
[1739473259570,0.06800892,2646.6,2646.3,6.77885]
[1739473259773,0.06800892,2646.6,2646.2,3.0]
[1739473260148,0.06800892,2646.6,2646.5,6.77857]
[1739473260274,0.06800892,2646.6,2646.5,3.0]
[1739473260474,0.3846,2646.7,2646.6,3.0]
[1739473260726,0.3846,2646.7,2646.6,6.77843]
[1739473260875,0.11742613,2646.9,2646.7,3.77822]
[1739473261105,0.11742613,2646.9,2646.8,6.77814]
[1739473261273,0.11742613,2646.9,2646.8,8.5901235]
[1739473261469,0.11742613,2646.9,2646.8,4.78389915]
[1739473261687,0.11742613,2646.9,2646.8,3.0]
[1739473262775,0.18542626,2646.9,2646.8,3.0]
[1739473264518,0.18542626,2646.9,2646.8,6.77814]
[1739473264832,0.3846,2647.7,2647.5,3.77708]
[1739473265137,0.3846,2648.2,2648.1,3.77629]
[1739473265283,0.3846,2648.2,2648.1,6.77629]
[1739473265486,0.0685978,2648.2,2648.1,6.77629]
[1739473265711,0.005,2648.4,2648.1,6.77629]
[1739473265712,0.005,2648.4,2648.3,6.776]
[1739473266254,0.1436667,2648.7,2648.6,3.77557]
[1739473266430,0.1436667,2648.7,2648.6,11.08622817]
[1739473266733,6.7e-06,2648.7,2648.6,11.82600147]
[1739473266895,2.0,2650.0,2648.7,3.0]
[1739473267095,2.0,2650.3,2649.4,3.77443]
[1739473267442,0.07100444,2650.2,2649.1,3.77485]
[1739473267594,0.3846,2650.5,2649.2,0.02799385]
[1739473267795,2.11816832,2650.4,2648.9,3.77515]
[1739473267994,2.11816832,2650.4,2647.8,0.28922671]
[1739473267995,4.15876,2649.6,2648.7,0.74457419]
[1739473268196,4.15876,2649.6,2648.6,3.77549]
[1739473268197,4.15878,2649.6,2648.6,3.77549]
[1739473268414,0.48688244,2649.5,2648.9,3.0]
[1739473268616,0.07100444,2649.5,2648.4,4.55646]
[1739473268931,0.07100444,2649.5,2647.5,0.377708]
[1739473268932,0.015,2649.3,2647.9,0.8103]
[1739473269227,0.04719055,2649.4,2647.9,3.77655]
[1739473269228,0.3846,2648.7,2647.9,3.77655]
[1739473269438,0.07100444,2648.6,2648.0,3.0]
[1739473269583,3.77594,2648.4,2647.5,9.24775947]
[1739473269782,0.07100444,2648.3,2647.6,0.92477595]
[1739473269982,3.77673,2647.8,2647.1,0.8103]
[1739473270222,3.84786444,2647.7,2646.9,4.28263147]
[1739473270736,3.7773,2647.4,2646.6,4.52952]
[1739473270884,3.78478,2647.5,2646.6,0.7511]
[1739473271227,0.07100444,2647.4,2646.7,3.77824]
[1739473271463,0.07100444,2647.4,2646.7,0.377824]
[1739473271760,0.07100444,2647.4,2646.9,3.77798]
[1739473271909,0.07100444,2647.4,2647.0,3.77777]
[1739473272473,0.3846,2647.8,2646.9,3.0]
[1739473272610,0.07100444,2647.3,2647.2,3.77754]
[1739473272809,0.3846,2647.8,2647.3,3.7774]
[1739473273051,0.07100444,2647.7,2647.3,3.7774]
[1739473273249,0.07100444,2647.7,2647.4,3.77716]
[1739473273431,0.015,2648.1,2647.3,1.05831528]
[1739473273612,0.015,2647.8,2646.8,3.77806]
[1739473273818,3.77727,2647.5,2646.5,0.7628]
[1739473274017,3.84804104,2647.4,2646.6,3.77836]
[1739473274254,3.84804104,2647.4,2646.8,3.0]
[1739473274563,3.84804104,2647.4,2646.1,0.7628]
[1739473274564,0.06222364,2647.3,2646.3,0.75792483]
[1739473274857,0.015,2647.3,2646.7,3.77828]
[1739473275077,0.07041611,2647.2,2646.7,3.77828]
[1739473275432,0.07041611,2647.2,2646.5,3.77856]
[1739473275637,0.07041611,2647.2,2646.6,3.77841]
[1739473276038,0.07041611,2647.2,2646.7,3.77817]
[1739473276732,0.07041611,2647.2,2646.6,3.77841]
[1739473277085,0.07041611,2647.2,2646.7,6.77828]
[1739473277438,0.07041611,2647.2,2646.7,3.0]
[1739473277647,0.07041611,2647.2,2646.7,6.77816]
[1739473277848,0.07041611,2647.2,2646.9,3.77798]
[1739473278044,0.0075,2647.3,2646.7,1.055657]
[1739473278295,3.79283,2647.1,2646.5,3.0]
[1739473278596,0.3846,2647.0,2646.4,3.77865]
[1739473278894,4.23192979,2647.0,2646.4,3.77865]
[1739473279196,4.23187979,2647.0,2646.1,3.0]
[1739473279412,3.77814,2646.8,2645.7,0.7693]
[1739473279700,3.84758315,2646.7,2646.0,3.77919]
[1739473279880,3.84758315,2646.7,2646.1,3.0]
[1739473280065,0.06928315,2646.7,2646.1,3.0]
[1739473280246,0.06928315,2646.7,2646.1,6.7791]
[1739473280450,0.06928315,2646.7,2646.3,3.77885]
[1739473280706,0.015,2646.9,2646.3,3.77885]
[1739473280850,0.06900198,2646.6,2646.4,3.7787]
[1739473281045,0.3846,2647.0,2646.4,3.37787]
[1739473281251,0.0689932,2646.9,2646.7,3.77817]
[1739473281483,0.0689932,2646.9,2646.5,3.7785]
[1739473281701,0.0689932,2646.9,2646.6,6.7784]
[1739473282011,0.0689932,2646.9,2646.6,3.0]
[1739473282508,0.0689932,2646.9,2646.6,3.77833]
[1739473282861,0.0689932,2646.9,2646.5,3.0]
[1739473283054,0.0689932,2646.9,2645.7,0.7693]
[1739473283055,3.77868,2646.5,2645.8,3.77945]
[1739473283252,0.06905471,2646.4,2645.8,3.77953]
[1739473283577,3.84793471,2646.3,2645.8,3.77953]
[1739473283958,0.06905471,2646.3,2645.3,0.7737]
[1739473284157,0.3846,2646.2,2645.3,0.7737]
[1739473284358,0.06853614,2646.1,2645.8,3.7795]
[1739473284616,3.84767614,2646.1,2645.6,3.77976]
[1739473285221,3.77938,2646.0,2645.4,7.5601]
[1739473285375,0.04724212,2645.9,2645.0,0.757]
[1739473285587,3.77982,2645.7,2645.2,3.78039]
[1739473285886,0.06821083,2645.8,2645.5,3.77991]
[1739473286056,3.7793,2646.0,2645.5,7.55983]
[1739473286256,0.06821083,2645.7,2645.3,10.56036]
[1739473286521,3.7795,2645.9,2645.3,7.836196]
[1739473286663,0.06821083,2645.6,2645.5,6.77991]
[1739473286861,4.66723147,2646.2,2645.7,3.77968]
[1739473287085,0.06821083,2645.6,2645.4,0.02813097]
[1739473287266,0.3846,2646.2,2646.1,3.77914]
[1739473288016,0.3846,2646.2,2645.5,3.0]
[1739473288017,0.3996,2646.6,2645.6,3.0]
[1739473288161,0.3996,2646.6,2646.2,3.77886]
[1739473288369,3.77858,2646.5,2646.0,3.77918]
[1739473289013,4.28263147,2646.5,2645.4,3.78011]
[1739473289222,3.77927,2646.1,2645.5,3.77998]
[1739473289421,3.77902,2646.2,2645.6,6.77974]
[1739473289567,4.158422,2646.2,2645.7,3.77964]
[1739473289763,0.379402,2646.2,2645.7,3.77964]
[1739473289999,3.77895,2646.3,2645.8,3.77956]
[1739473290213,3.77911,2646.2,2645.6,6.77972]
[1739473290413,3.77908,2646.2,2645.6,3.0]
[1739473290730,3.77908,2646.2,2645.7,3.77962]
[1739473290889,3.77908,2646.2,2645.7,7.55923]
[1739473291224,3.77908,2646.2,2645.4,6.78005]
[1739473291225,3.77936,2646.0,2645.4,6.78005]
[1739473291435,0.3846,2645.9,2645.6,3.0]
[1739473291776,0.3846,2645.9,2645.7,3.77971]
[1739473291976,0.3846,2645.9,2645.8,3.77957]
[1739473292172,0.3846,2646.6,2645.8,3.78362923]
[1739473292401,0.3846,2646.6,2646.5,3.77857]
[1739473292601,4.16225,2647.2,2646.5,3.77855]
[1739473292824,3.77776,2647.1,2646.6,3.77836]
[1739473292972,3.77793,2647.0,2646.5,3.77855]
[1739473293171,3.77776,2647.1,2646.5,3.77849]
[1739473293418,4.16227,2647.2,2646.8,3.77808]
[1739473293419,0.3846,2647.2,2646.8,3.77808]
[1739473293767,0.3846,2647.2,2646.9,3.77789]
[1739473293973,0.3846,2647.2,2646.6,3.0]
[1739473294221,0.3846,2647.6,2647.1,3.7776]
[1739473294433,0.015,2647.5,2647.2,3.77756]
[1739473294726,0.015,2647.5,2647.1,3.7776]
[1739473295135,0.015,2647.5,2647.0,3.0]
[1739473295277,3.79227,2647.5,2647.0,3.0]
[1739473295476,1.237397,2647.5,2646.9,3.0]
[1739473295775,3.77766,2647.2,2646.7,3.0]
[1739473296411,0.015,2647.3,2646.7,6.77828]
[1739473296728,0.015,2647.3,2646.3,0.8232]
[1739473296729,0.015,2647.3,2646.9,3.77791]
[1739473297230,4.16166,2647.6,2646.8,3.77804]
[1739473297231,3.77738,2647.4,2646.8,3.77804]
[1739473297436,7.55477,2647.4,2646.8,3.77804]
[1739473297568,3.77744,2647.3,2646.8,3.77804]
[1739473297769,3.77779,2647.1,2646.6,3.0]
[1739473298078,3.77786,2647.0,2646.5,3.77857]
[1739473298416,3.77786,2647.0,2646.6,3.0]
[1739473298613,3.77786,2647.0,2646.4,3.77862]
[1739473298811,0.3846,2646.9,2646.6,3.0]
[1739473299177,0.3846,2646.9,2646.6,1.055694]
[1739473299413,4.16261,2646.9,2646.0,0.8008]
[1739473299625,3.77821,2646.8,2646.3,3.77879]
[1739473299998,3.77829,2646.7,2646.3,3.77879]
[1739473300335,3.77829,2646.7,2646.1,3.77903]
[1739473300470,3.77829,2646.7,2646.3,3.77885]
[1739473300679,3.77829,2646.7,2646.2,3.0]
[1739473300919,3.78565,2646.8,2645.8,3.77957]
[1739473301093,3.78565,2646.8,2646.3,3.77878]
[1739473301446,0.0075,2646.8,2645.9,4.457377]
[1739473301648,0.0075,2646.8,2646.6,3.77842]
[1739473301949,0.3846,2646.9,2646.7,3.77814]
[1739473302144,0.3846,2647.3,2646.8,3.77804]
[1739473302349,4.16205,2647.3,2646.8,3.77804]
[1739473302693,3.77766,2647.2,2646.7,3.0]
[1739473302900,3.7779,2647.0,2646.6,3.0]
[1739473303739,0.015,2647.2,2646.6,3.0]
[1739473303942,3.77782,2647.1,2646.6,3.77842]
[1739473304106,3.77787,2647.0,2646.7,3.0]
[1739473304306,3.77787,2647.0,2646.6,3.0]
[1739473304491,3.77789,2647.0,2646.3,3.77874]
[1739473304835,0.3846,2646.7,2646.4,3.77861]
[1739473305156,0.3846,2646.7,2646.3,3.0]
[1739473305296,4.16294,2646.7,2646.3,3.0]
[1739473305951,3.77859,2646.5,2646.3,3.0]
[1739473306089,3.77844,2646.6,2645.9,4.457317]
[1739473306293,0.3846,2646.7,2646.1,3.77902]
[1739473306532,3.77855,2646.6,2646.1,3.77902]
[1739473306740,3.77855,2646.6,2645.9,4.457357]
[1739473306938,4.16298,2646.7,2645.9,0.677957]
[1739473307123,0.3846,2646.7,2646.0,0.02811812]
[1739473307438,0.3846,2646.7,2646.3,3.0]
[1739473307639,0.3846,2646.7,2646.4,3.77863]
[1739473307823,0.06885252,2646.6,2646.2,6.77892]
[1739473307994,0.06885252,2646.6,2646.2,6.77891]
[1739473308196,0.06885252,2646.6,2646.2,3.77899]
[1739473308512,0.06885252,2646.6,2646.1,6.77911]
[1739473308885,3.7786,2646.5,2646.0,3.0]
[1739473309138,3.84638916,2646.5,2646.0,6.77928]
[1739473309443,0.06778916,2646.5,2646.1,3.77907]
[1739473309665,3.77849,2646.6,2646.1,3.77907]
[1739473309869,0.06778916,2646.4,2646.1,3.77907]
[1739473310173,4.16299,2646.7,2646.1,3.77907]
[1739473310306,0.06778916,2646.3,2646.2,3.779]
[1739473310644,0.3846,2646.7,2645.9,6.77942]
[1739473310793,0.06760454,2646.3,2646.2,6.779]
[1739473311002,0.06760454,2646.3,2646.2,3.0]
[1739473311200,4.16297,2646.7,2646.2,6.77896]
[1739473311527,0.06776279,2646.3,2646.2,6.779]
[1739473311728,0.3846,2647.1,2646.5,3.77853]
[1739473311928,0.3846,2647.1,2646.7,3.0]
[1739473312334,4.16241,2647.1,2646.5,3.77857]
[1739473312514,6.04794,2647.0,2646.6,3.0]
[1739473312698,6.04803,2646.9,2646.4,3.0]
[1739473312903,6.04835,2646.7,2646.2,3.77892]
[1739473313103,6.04835,2646.7,2646.3,3.0]
[1739473313318,9.82675,2646.7,2646.3,3.0]
[1739473313527,6.04835,2646.7,2646.3,6.77882]
[1739473313760,0.3846,2647.1,2646.8,3.77805]
[1739473313924,0.3846,2647.4,2646.3,4.055774]
[1739473314124,0.3846,2647.4,2647.1,3.0]
[1739473314346,3.77743,2647.3,2647.1,3.0]
[1739473314663,3.77743,2647.3,2646.7,3.77822]
[1739473314865,6.04773,2647.1,2646.6,6.77842]
[1739473315023,3.77807,2646.9,2646.5,3.0]
[1739473315229,6.04787,2647.0,2646.5,3.77854]
[1739473315407,6.04787,2647.0,2646.5,3.7785]
[1739473315607,2.27,2647.0,2646.6,3.0]
[1739473315854,2.27,2647.0,2646.8,3.0]
[1739473316362,2.27,2647.1,2646.8,3.0]
[1739473316506,2.27,2647.1,2646.4,3.7938]
[1739473316708,0.3846,2647.4,2647.0,3.0]
[1739473316942,4.16189,2647.4,2647.0,3.0]
[1739473317149,3.77707,2647.6,2647.1,3.7777]
[1739473317480,3.77707,2647.6,2647.1,7.55533]
[1739473317653,2.27,2647.5,2647.2,3.77755]
[1739473318101,2.27,2647.5,2647.1,3.77765]
[1739473318771,2.27,2647.5,2647.2,3.77757]
[1739473318930,0.3846,2647.9,2647.4,3.77719]
[1739473319263,0.800713,2647.9,2647.3,7.55479]
[1739473319405,3.77673,2647.8,2647.3,7.55479]
[1739473319607,3.77673,2647.8,2647.4,3.77729]
[1739473319844,0.0685098,2647.7,2647.5,3.77712]
[1739473320066,0.0685098,2647.7,2647.0,4.58904]
[1739473320067,2.6546,2647.9,2647.6,6.777]
[1739473320221,4.28263147,2648.5,2647.7,3.0]
[1739473320222,0.3846,2648.2,2647.7,3.0]
[1739473320430,4.1604,2648.5,2647.9,3.77645]
[1739473320641,3.7759,2648.4,2647.9,3.77645]
[1739473320908,4.56964,2648.3,2647.8,3.0]
[1739473321348,0.79363,2648.3,2647.8,3.0]
[1739473321529,2.27,2648.4,2647.8,3.0]
[1739473321709,4.16032,2648.5,2647.9,3.77649]
[1739473321910,3.77587,2648.4,2647.9,3.77649]
[1739473322111,3.77587,2648.4,2647.8,6.77672]
[1739473322429,3.78359,2648.3,2647.8,6.77672]
[1739473322631,4.532096,2648.2,2647.7,6.77685]
[1739473322830,0.82540483,2648.2,2647.9,3.0]
[1739473323032,0.06945883,2648.2,2647.9,3.0]
[1739473323214,0.0075,2648.1,2647.5,3.77706]
[1739473323419,0.0075,2648.1,2647.6,3.7769]
[1739473323678,0.07695883,2648.1,2647.7,3.0]
[1739473324011,3.77672,2647.8,2647.1,3.77762]
[1739473324171,0.0075,2647.9,2647.0,0.7969]
[1739473324336,0.3846,2648.0,2647.6,3.77695]
[1739473324535,0.06945883,2647.8,2647.7,3.77686]
[1739473324889,0.3846,2648.0,2647.8,3.77664]
[1739473325180,0.3846,2648.5,2647.8,1.055363]
[1739473325318,0.3846,2648.5,2648.2,3.77612]
[1739473325519,0.3846,2648.5,2648.1,3.0]
[1739473325520,0.3846,2648.5,2648.3,3.77592]
[1739473325745,0.3846,2648.8,2648.4,3.77586]
[1739473325951,4.15995,2648.8,2648.3,3.77597]
[1739473326181,0.3846,2648.8,2648.0,3.7764]
[1739473326502,2.05964799,2649.2,2648.4,3.0]
[1739473326621,2.05964799,2649.2,2648.9,3.77506]
[1739473326975,5.83441799,2649.2,2648.8,3.0]
[1739473327180,5.83441799,2649.2,2648.2,4.53514]
[1739473327181,0.3846,2648.6,2647.9,0.8048]
[1739473327382,0.3846,2648.6,2647.8,3.0]
[1739473327674,0.3846,2648.6,2648.2,3.0]
[1739473327675,1.05132315,2648.6,2648.2,3.0]
[1739473328162,1.05132315,2648.6,2647.8,3.77666]
[1739473328163,3.77602,2648.3,2647.8,3.77666]
[1739473328893,1.05132315,2648.6,2647.6,0.8048]
[1739473329022,0.3846,2648.6,2648.2,3.0]
[1739473329224,4.16021,2648.6,2648.2,3.0]
[1739473329422,0.3846,2648.6,2647.8,3.77671]
[1739473329637,3.77594,2648.4,2647.8,3.77671]
[1739473329863,0.377594,2648.3,2648.0,3.77635]
[1739473330070,0.377594,2648.3,2647.9,3.77656]
[1739473330273,0.377594,2648.3,2647.9,3.77648]
[1739473330563,0.377594,2648.3,2648.0,3.77633]
[1739473330766,0.377594,2648.3,2647.7,3.0]
[1739473330966,3.78336,2648.4,2647.9,3.0]
[1739473331136,0.0075,2648.4,2647.8,3.0]
[1739473331475,0.0075,2648.4,2646.7,4.28263147]
[1739473331476,7.55364,2647.8,2647.1,3.77763]
[1739473331666,3.77682,2647.8,2647.3,3.7774]
[1739473331968,3.77672,2647.8,2647.4,3.0]
[1739473332122,3.77672,2647.8,2647.3,3.0]
[1739473332323,0.0075,2648.1,2647.1,3.0]
[1739473332555,0.0075,2648.1,2647.7,3.77681]
[1739473332865,0.0075,2648.1,2647.3,3.0]
[1739473332866,0.3846,2648.3,2647.9,3.77649]
[1739473333269,0.3846,2648.3,2647.8,3.0]
[1739473333569,7.9367,2648.3,2647.8,3.0]
[1739473333974,3.7763,2648.1,2647.8,3.0]
[1739473334273,0.3846,2648.3,2647.3,3.0]
[1739473334483,0.3846,2648.6,2648.4,3.77585]
[1739473334690,4.15982,2648.9,2648.4,7.55164]
[1739473334845,3.77541,2648.8,2648.2,6.77606]
[1739473335056,4.15982,2648.9,2648.4,3.0]
[1739473335222,0.05469694,2648.8,2648.1,3.0]
[1739473335422,3.77594,2648.4,2647.9,3.77651]
[1739473335622,0.762194,2648.3,2647.8,3.77667]
[1739473335933,0.3846,2648.3,2648.1,3.0]
[1739473336239,4.16062,2648.3,2647.7,3.0]
[1739473336457,0.3846,2648.3,2647.7,6.77686]
[1739473336659,4.16062,2648.3,2647.7,6.77686]
[1739473336967,3.77618,2648.2,2647.7,6.77686]
[1739473337175,4.57732,2648.2,2647.6,3.77692]
[1739473337328,3.77684,2647.8,2647.2,0.7724]
[1739473337531,3.77725,2647.5,2646.9,0.8061]
[1739473337767,3.77725,2647.5,2647.1,3.0]
[1739473337965,0.07040737,2647.4,2647.0,6.77783]
[1739473338479,3.777,2647.6,2647.1,3.7777]
[1739473338629,0.07040737,2647.3,2647.2,3.0]
[1739473338830,3.777,2647.6,2647.2,3.0]
[1739473339076,0.07040737,2647.3,2647.2,6.77757]
[1739473339233,3.77701,2647.6,2646.9,4.584]
[1739473339435,3.77701,2647.6,2647.0,3.0]
[1739473339870,0.07040737,2647.5,2647.1,3.77764]
[1739473340072,3.84764737,2647.5,2647.0,3.0]
[1739473340399,0.07040737,2647.4,2647.1,3.77766]
[1739473340567,0.07040737,2647.4,2647.3,3.0]
[1739473340747,4.16156,2647.7,2647.3,3.0]
[1739473340955,0.07040737,2647.4,2647.3,3.0]
[1739473341263,4.806196,2647.7,2647.3,3.0]
[1739473341463,0.06993308,2647.4,2647.3,3.0]
[1739473341667,4.806196,2647.7,2647.3,3.0]
[1739473341903,3.84726308,2647.4,2646.9,4.58398]
[1739473342100,0.3846,2647.1,2645.8,0.8146]
[1739473342233,3.77875,2646.4,2646.0,0.76962649]
[1739473342591,0.06993308,2646.3,2645.8,0.8146]
[1739473342889,3.84889308,2646.3,2645.8,7.59414]
[1739473343067,3.77879,2646.4,2645.8,8.731513]
[1739473343275,0.06993308,2646.2,2646.0,6.77918]
[1739473343632,0.3846,2646.8,2645.8,1.951973]
[1739473343831,0.06993308,2646.1,2646.0,7.64029607]
[1739473344156,0.3846,2647.2,2646.8,6.77806]
[1739473344649,0.06993308,2647.1,2646.7,3.0]
[1739473344850,0.06993308,2647.1,2646.7,6.77827]
[1739473345054,0.06993308,2647.1,2646.8,3.77809]
[1739473345387,0.06993308,2647.1,2646.7,3.0]
[1739473345529,3.77837,2646.7,2646.1,3.77904]